bitfinex/quotes_SOLUSD_20240809
["timestamp","ask_amount","ask_price","bid_price","bid_amount"]
[1723233816421,26.4991,153.87,153.85,19.5]
[1723233817022,6.4994,153.86,153.85,19.5]
[1723233817329,6.4994,153.86,153.84,19.5]
[1723233818541,16.4994,153.87,153.84,19.5]
[1723233818724,1.13156607,153.89,153.84,19.5]
[1723233820435,6.4994,153.86,153.84,19.5]
[1723233821843,1.13156607,153.89,153.84,19.5]
[1723233822143,6.4988,153.88,153.84,19.5]
[1723233822344,20.0,153.87,153.82,16.4963]
[1723233822640,6.4999,153.85,153.82,16.4963]
[1723233822829,6.4999,153.85,153.82,35.9963]
[1723233824429,6.4995,153.86,153.82,35.9963]
[1723233824634,6.4999,153.85,153.82,35.9963]
[1723233824945,6.4999,153.85,153.82,16.4963]
[1723233825147,6.4994,153.86,153.82,16.4963]
[1723233827132,6.5005,153.84,153.79,19.5]
[1723233827337,19.5,153.83,153.75,10.58668592]
[1723233827544,6.502,153.8,153.75,0.8237984]
[1723233827841,26.002,153.8,153.75,0.8237984]
[1723233828417,46.12689,153.82,153.75,0.8237984]
[1723233828652,6.502,153.8,153.75,20.3237984]
[1723233828825,6.502,153.8,153.75,0.8237984]
[1723233829926,26.0016,153.81,153.75,0.8237984]
[1723233830126,0.12549,153.8,153.75,0.8237984]
[1723233830642,6.62739,153.8,153.75,0.8237984]
[1723233830857,6.5032,153.77,153.75,0.8237984]
[1723233831844,26.12839,153.78,153.75,0.8237984]
[1723233832032,20.25098,153.77,153.75,0.8237984]
[1723233833160,20.0,153.77,153.75,0.8237984]
[1723233833448,6.5023,153.79,153.75,0.8237984]
[1723233833449,20.0,153.78,153.75,0.8237984]
[1723233834152,0.12549,153.77,153.75,0.8237984]
[1723233834330,0.25098,153.77,153.75,0.8237984]
[1723233834523,6.75428,153.77,153.75,0.8237984]
[1723233835753,46.25458,153.76,153.75,0.8237984]
[1723233835965,46.50556,153.76,153.75,0.8237984]
[1723233836249,91.50556,153.76,153.75,0.8237984]
[1723233838658,98.2812217,153.76,153.75,0.8237984]
[1723233838830,117.7812217,153.76,153.75,0.8237984]
[1723233840242,78.7812217,153.76,153.75,0.8237984]
[1723233840559,98.2812217,153.76,153.75,0.8237984]
[1723233842066,33.2792617,153.76,153.75,0.8237984]
[1723233842261,6.7756617,153.76,153.75,0.8237984]
[1723233842557,6.5036,153.76,153.75,0.8237984]
[1723233843540,6.62909,153.76,153.75,0.8237984]
[1723233844233,26.62909,153.76,153.75,0.8237984]
[1723233844556,72.00556,153.76,153.75,0.8237984]
[1723233844951,91.50556,153.76,153.75,0.8237984]
[1723233845344,92.63685937,153.76,153.75,0.8237984]
[1723233848337,112.13685937,153.76,153.75,0.8237984]
[1723233849839,92.63685937,153.76,153.75,0.8237984]
[1723233852969,112.13685937,153.76,153.75,0.8237984]
[1723233853152,118.90541478,153.76,153.75,0.8237984]
[1723233853774,177.40541478,153.76,153.75,0.8237984]
[1723233854158,16.2623,153.73,153.65,6.5953]
[1723233854482,6.5075,153.67,153.65,6.5953]
[1723233855064,6.5076,153.67,153.64,15.4883]
[1723233855254,6.88347,153.68,153.64,15.4883]
[1723233856443,0.25098,153.68,153.64,15.4883]
[1723233856764,0.25098,153.68,153.65,6.5081]
[1723233856954,45.25098,153.69,153.65,6.5081]
[1723233857139,20.0,153.68,153.65,6.5081]
[1723233857847,20.0,153.68,153.64,21.9969]
[1723233859675,26.507,153.68,153.64,15.4883]
[1723233859973,6.75838,153.67,153.64,15.4883]
[1723233862650,20.25098,153.66,153.61,6.5995]
[1723233862851,45.25098,153.65,153.61,6.5995]
[1723233863050,6.5089,153.64,153.61,6.5995]
[1723233863360,6.76008,153.63,153.61,6.5995]
[1723233863576,0.12549,153.64,153.6,16.0154984]
[1723233863878,0.25098,153.64,153.6,16.0154984]
[1723233864077,0.25098,153.65,153.6,16.0154984]
[1723233864368,0.25098,153.65,153.62,6.5092]
[1723233864792,20.25098,153.65,153.62,6.5092]
[1723233865667,0.12549,153.64,153.6,0.8237984]
[1723233865959,6.5094,153.63,153.6,0.8237984]
[1723233866465,6.63429,153.64,153.6,0.8237984]
[1723233866693,20.25098,153.63,153.6,0.8237984]
[1723233867054,26.76018,153.63,153.6,0.8237984]
[1723233867377,0.12549,153.62,153.6,0.8237984]
[1723233867752,26.76018,153.63,153.6,0.8237984]
[1723233868176,0.12549,153.62,153.6,0.8237984]
[1723233868580,45.12549,153.62,153.6,0.8237984]
[1723233868787,0.25098,153.61,153.6,0.8237984]
[1723233871504,27.01186,153.61,153.6,0.8237984]
[1723233871704,72.01186,153.61,153.6,0.8237984]
[1723233872509,65.50196,153.61,153.6,0.8237984]
[1723233873012,72.01186,153.61,153.6,0.8237984]
[1723233878420,65.37647,153.61,153.6,0.8237984]
[1723233878580,20.37647,153.61,153.6,0.8237984]
[1723233879389,26.88637,153.61,153.6,0.8237984]
[1723233881520,46.44637,153.61,153.6,0.8237984]
[1723233882410,46.57186,153.61,153.6,0.8237984]
[1723233882711,6.5107,153.6,153.55,6.5124]
[1723233882924,6.5107,153.6,153.53,42.2384]
[1723233882925,0.25098,153.59,153.56,6.5119]
[1723233883418,6.76178,153.59,153.55,6.5124]
[1723233884591,0.25098,153.59,153.55,6.5124]
[1723233884819,0.25098,153.59,153.56,6.512]
[1723233885113,0.25098,153.59,153.56,26.072]
[1723233885293,0.25098,153.59,153.56,6.512]
[1723233885707,0.12549,153.59,153.57,6.5116]
[1723233885893,27.76746853,153.61,153.57,6.5116]
[1723233887197,27.76746853,153.61,153.56,6.512]
[1723233890118,6.5104,153.6,153.56,6.512]
[1723233893824,6.5104,153.6,153.55,26.0724]
[1723233896120,6.5104,153.6,153.56,6.5119]
[1723233896315,27.64187853,153.61,153.56,6.5119]
[1723233896511,27.64187853,153.61,153.57,6.5116]
[1723233897110,21.13187853,153.61,153.58,6.5111]
[1723233897309,6.5086,153.65,153.6,26.0704]
[1723233897516,6.5087,153.64,153.61,19.56]
[1723233897828,6.5094,153.63,153.59,35.3912]
[1723233897997,6.5096,153.62,153.59,35.3912]
[1723233898404,6.5091,153.63,153.59,35.3912]
[1723233898834,6.5091,153.63,153.59,41.9019]
[1723233899333,6.5087,153.65,153.6,26.0703]
[1723233899536,6.5087,153.64,153.6,26.0703]
[1723233900634,1.13144724,153.66,153.64,6.5086]
[1723233900927,1.13144724,153.66,153.63,19.56]
[1723233900928,19.56,153.69,153.63,19.56]
[1723233901116,6.5079,153.66,153.62,19.56]
[1723233901312,6.5074,153.68,153.63,19.56]
[1723233901725,6.5074,153.68,153.63,26.0689]
[1723233902032,26.5074,153.67,153.63,26.0689]
[1723233902327,26.5074,153.67,153.63,19.56]
[1723233902932,20.0,153.67,153.63,26.069]
[1723233903229,26.5075,153.67,153.63,26.069]
[1723233903433,6.5079,153.66,153.63,19.56]
[1723233903736,6.5079,153.66,153.62,19.56]
[1723233904114,19.56,153.66,153.6,6.4694]
[1723233904430,6.5095,153.63,153.59,15.8312]
[1723233905020,6.5088,153.64,153.59,22.3419]
[1723233906747,6.5088,153.64,153.6,6.5103]
[1723233907247,6.5091,153.63,153.59,22.342]
[1723233907625,19.81098,153.65,153.59,22.342]
[1723233907828,26.5087,153.64,153.6,6.5103]
[1723233908625,20.0,153.64,153.6,6.5103]
[1723233909743,26.5089,153.64,153.6,6.5103]
[1723233910856,26.5089,153.64,153.59,41.9019]
[1723233911144,6.5092,153.63,153.59,41.9019]
[1723233911360,26.5087,153.64,153.6,6.5103]
[1723233913349,20.0,153.64,153.6,6.5103]
[1723233914439,20.0,153.64,153.6,26.0703]
[1723233914844,26.5088,153.64,153.6,6.5103]
[1723233915433,20.0,153.64,153.62,19.56]
[1723233915637,6.5077,153.67,153.62,19.56]
[1723233915953,20.0,153.66,153.62,26.0694]
[1723233916137,20.0,153.66,153.59,15.8312]
[1723233916138,7.89046241,153.7,153.65,19.56]
[1723233916342,1.13122873,153.7,153.67,19.56]
[1723233916643,6.506,153.71,153.67,19.56]
[1723233916834,6.506,153.71,153.67,20.86139049]
[1723233917346,6.5043,153.75,153.7,26.0658]
[1723233917655,16.2563,153.79,153.68,1.30130036]
[1723233917656,34.8319,153.81,153.74,19.56]
[1723233917859,34.8319,153.81,153.75,19.56]
[1723233918156,1.13046597,153.8,153.75,19.56]
[1723233918329,6.5028,153.78,153.75,19.56]
[1723233920237,6.5028,153.78,153.74,19.56]
[1723233920553,1.13046597,153.8,153.75,1.30070269]
[1723233920554,6.5024,153.79,153.75,1.30070269]
[1723233920752,20.0,153.78,153.75,19.56]
[1723233921727,20.0,153.78,153.76,19.56]
[1723233921948,6.5025,153.79,153.75,19.56]
[1723233922356,20.0,153.78,153.75,19.56]
[1723233923050,6.5036,153.76,153.73,19.56]
[1723233923641,6.5036,153.76,153.72,36.0145]
[1723233923841,6.5032,153.77,153.73,19.56]
[1723233924741,6.5032,153.77,153.72,16.4545]
[1723233924948,6.5032,153.77,153.73,19.56]
[1723233925254,39.56,153.78,153.68,6.1592]
[1723233925556,6.5041,153.75,153.69,19.56]
[1723233925744,6.5037,153.76,153.7,19.56]
[1723233927060,6.5041,153.75,153.7,19.56]
[1723233927453,26.43977,153.77,153.71,19.56]
[1723233927640,20.0,153.76,153.71,19.56]
[1723233927846,20.0,153.76,153.72,19.56]
[1723233928649,20.0,153.76,153.71,19.56]
[1723233928855,20.0,153.76,153.72,19.56]
[1723233929970,26.5036,153.76,153.72,19.56]
[1723233930352,6.5036,153.76,153.72,19.56]
[1723233930555,1.13046597,153.8,153.75,19.56]
[1723233930759,1.13046597,153.8,153.76,19.56]
[1723233931767,6.5029,153.78,153.75,19.56]
[1723233934056,6.5029,153.78,153.74,19.56]
[1723233935660,6.5024,153.79,153.75,19.56]
[1723233935857,20.0,153.78,153.75,19.56]
[1723233937268,26.5029,153.78,153.75,19.56]
[1723233937460,26.5029,153.78,153.74,19.56]
[1723233939874,26.5029,153.78,153.75,19.56]
[1723233942977,26.5029,153.78,153.74,19.56]
[1723233943783,20.0,153.78,153.73,19.56]
[1723233943968,39.56,153.79,153.73,19.56]
[1723233944464,6.5033,153.77,153.73,19.56]
[1723233944864,6.5028,153.78,153.73,19.56]
[1723233945068,26.5024,153.79,153.75,19.56]
[1723233946276,20.0,153.79,153.75,19.56]
[1723233946978,1.13046597,153.8,153.77,19.56]
[1723233947194,38.41094208,153.84,153.77,19.56]
[1723233947391,6.5019,153.81,153.77,19.56]
[1723233947598,1.1302782,153.82,153.76,19.56]
[1723233947796,6.5019,153.8,153.76,19.56]
[1723233949507,1.1302782,153.82,153.76,19.56]
[1723233949983,6.502,153.8,153.75,19.56]
[1723233950507,6.5025,153.79,153.75,19.56]
[1723233952397,6.503,153.78,153.74,19.56]
[1723233952908,6.5032,153.77,153.73,19.56]
[1723233953201,6.5032,153.77,153.72,35.8266]
[1723233953907,6.5032,153.77,153.72,19.56]
[1723233954385,6.5028,153.78,153.72,19.56]
[1723233954586,6.5024,153.79,153.74,19.56]
[1723233954904,20.0,153.78,153.74,19.56]
[1723233957199,20.0,153.78,153.75,20.8605694]
[1723233957508,20.0,153.78,153.75,19.56]
[1723233957705,20.0,153.78,153.74,19.56]
[1723233957913,26.503,153.78,153.73,19.56]
[1723233958426,6.5033,153.77,153.72,19.56]
[1723233959191,6.5036,153.76,153.71,19.56]
[1723233959486,6.504,153.75,153.71,19.56]
[1723233960101,6.504,153.75,153.7,19.56]
[1723233960304,6.5041,153.75,153.7,19.56]
[1723233960610,6.5037,153.76,153.7,19.56]
[1723233960820,20.0,153.75,153.7,19.56]
[1723233961306,20.0,153.75,153.71,19.56]
[1723233961710,6.5033,153.77,153.72,19.56]
[1723233961899,20.0,153.76,153.73,20.86076836]
[1723233962103,6.5029,153.78,153.73,19.56]
[1723233962420,20.0,153.77,153.73,19.56]
[1723233963282,20.0,153.77,153.72,19.56]
[1723233963489,6.5035,153.77,153.72,19.56]
[1723233964206,20.0,153.76,153.68,22.3507]
[1723233964509,6.5052,153.73,153.69,19.56]
[1723233965012,39.68549,153.76,153.6,333.34]
[1723233965013,6.5053,153.72,153.67,19.56]
[1723233965507,6.5053,153.72,153.64,6.4314]
[1723233965508,6.5058,153.71,153.66,19.56]
[1723233965809,6.5062,153.7,153.66,26.0677]
[1723233966024,6.5066,153.69,153.65,26.0682]
[1723233966190,19.56,153.71,153.62,6.5095]
[1723233966191,39.56,153.68,153.62,6.5095]
[1723233966385,6.5078,153.67,153.62,6.5095]
[1723233966590,6.5079,153.66,153.61,26.0699]
[1723233966894,39.56,153.68,153.62,6.5095]
[1723233967104,39.56,153.68,153.62,19.56]
[1723233967313,20.0,153.68,153.65,6.5082]
[1723233967519,20.0,153.69,153.65,6.5082]
[1723233967694,39.81098,153.7,153.65,6.5082]
[1723233967894,6.5066,153.69,153.64,19.56]
[1723233968108,20.0,153.68,153.63,26.0687]
[1723233968289,39.81098,153.7,153.63,26.0687]
[1723233968992,6.507,153.68,153.63,26.0687]
[1723233969197,20.0,153.67,153.63,26.0687]
[1723233969389,26.5076,153.67,153.62,6.5094]
[1723233970214,20.0,153.67,153.63,6.509]
[1723233971413,20.0,153.67,153.64,6.5086]
[1723233972223,20.0,153.67,153.63,6.509]
[1723233975421,20.0,153.67,153.64,6.5086]
[1723233977027,20.0,153.67,153.64,7.81011511]
[1723233977419,20.0,153.67,153.64,1.30151511]
[1723233978407,20.0,153.67,153.63,26.069]
[1723233981632,26.5075,153.67,153.63,26.069]
[1723233982627,20.0,153.67,153.63,26.069]
[1723233982832,20.0,153.67,153.64,1.30152616]
[1723233983839,20.0,153.67,153.63,26.069]
[1723233984213,20.0,153.67,153.64,1.3015279]
[1723233986132,20.0,153.67,153.63,6.509]
[1723233986934,26.5074,153.67,153.63,6.509]
[1723233988045,1.13125454,153.66,153.63,6.509]
[1723233988741,1.13125454,153.66,153.61,19.56]
[1723233989042,7.63935454,153.66,153.61,26.0699]
[1723233990435,1.13125454,153.66,153.62,26.0694]
[1723233990929,1.13125454,153.66,153.62,6.5094]
[1723233994818,1.13125454,153.66,153.64,6.5086]
[1723233995910,1.13125454,153.66,153.63,27.37065009]
[1723233996217,1.13125454,153.66,153.64,1.30157431]
[1723233997134,1.13125454,153.66,153.63,6.509]
[1723233999247,7.63925454,153.66,153.62,6.5095]
[1723234002630,1.13125454,153.66,153.62,6.5095]
[1723234003143,1.13125454,153.66,153.65,19.56]
[1723234003341,26.506,153.71,153.66,6.5077]
[1723234003529,1.13113102,153.69,153.66,6.5077]
[1723234003733,21.13113102,153.69,153.66,6.5077]
[1723234003926,21.13113102,153.69,153.65,26.0682]
[1723234005154,27.63773102,153.69,153.65,26.0682]
[1723234005631,27.63773102,153.69,153.65,6.5082]
[1723234006438,19.56,153.68,153.62,6.5094]
[1723234006639,21.13113102,153.69,153.62,6.5094]
[1723234006640,19.56,153.67,153.62,6.5094]
[1723234006833,39.56,153.67,153.62,6.5094]
[1723234007029,19.56,153.67,153.62,6.5094]
[1723234007240,19.56,153.68,153.62,6.5094]
[1723234007455,19.56,153.68,153.61,26.0698]
[1723234007456,6.5082,153.66,153.61,26.0698]
[1723234008667,6.5082,153.66,153.62,6.5095]
[1723234013249,6.5075,153.67,153.63,6.5091]
[1723234013442,20.0,153.66,153.63,6.5091]
[1723234014250,20.0,153.66,153.62,26.0694]
[1723234014457,20.0,153.66,153.62,6.5094]
[1723234014959,20.0,153.66,153.62,26.0694]
[1723234015332,20.0,153.66,153.62,6.5094]
[1723234017054,26.5078,153.66,153.62,6.5094]
[1723234017952,26.5078,153.66,153.61,19.56]
[1723234017953,6.5085,153.65,153.55,6.6407]
[1723234018151,26.0685,153.65,153.6,6.51]
[1723234018339,6.5087,153.64,153.6,6.51]
[1723234018740,19.56,153.65,153.6,6.51]
[1723234018942,19.56,153.65,153.61,6.5099]
[1723234019139,19.56,153.65,153.55,6.6407]
[1723234019140,6.5092,153.63,153.55,6.6407]
[1723234019361,26.0692,153.63,153.58,6.5109]
[1723234020549,15.4001,153.64,153.59,20.86209854]
[1723234020754,20.0,153.63,153.59,6.5105]
[1723234022053,20.0,153.63,153.61,6.5099]
[1723234022239,35.2229,153.68,153.61,19.56]
[1723234022447,19.56,153.66,153.6,19.56]
[1723234022657,6.5091,153.63,153.59,6.5108]
[1723234022942,19.56,153.66,153.59,19.56]
[1723234023154,19.56,153.66,153.61,6.5098]
[1723234023345,6.5082,153.66,153.61,6.5098]
[1723234023544,20.0,153.65,153.61,7.81169956]
[1723234023845,21.13139791,153.65,153.62,6.5093]
[1723234024047,20.0,153.66,153.62,6.5093]
[1723234024366,26.508,153.66,153.62,6.5093]
[1723234024863,20.0,153.66,153.62,26.0693]
[1723234025766,20.0,153.66,153.63,6.509]
[1723234025962,20.0,153.66,153.63,26.069]
[1723234026187,20.0,153.67,153.63,6.509]
[1723234026855,20.0,153.67,153.62,6.5095]
[1723234027164,20.0,153.67,153.62,26.0695]
[1723234027755,26.5074,153.67,153.62,26.0695]
[1723234028078,1.13123897,153.68,153.65,26.0679]
[1723234028970,1.13123897,153.68,153.65,6.5079]
[1723234029153,1.13123897,153.68,153.65,7.80934915]
[1723234029462,1.13123897,153.68,153.65,27.36934915]
[1723234029859,21.13123897,153.68,153.65,27.36934915]
[1723234031074,27.63853897,153.68,153.63,26.0688]
[1723234031448,26.5073,153.68,153.63,26.0688]
[1723234031770,6.5076,153.67,153.62,26.0694]
[1723234032175,6.5076,153.67,153.63,6.509]
[1723234033377,26.507,153.68,153.63,6.509]
[1723234034253,26.507,153.68,153.63,26.069]
[1723234034469,26.507,153.68,153.64,6.5086]
[1723234035857,6.5078,153.66,153.61,26.0696]
[1723234036177,6.5078,153.66,153.62,6.5094]
[1723234040292,26.0675,153.67,153.62,6.5094]
[1723234040450,20.0,153.66,153.62,6.5094]
[1723234041177,19.56,153.64,153.59,6.5105]
[1723234041358,26.0688,153.64,153.59,6.5105]
[1723234041688,20.0,153.63,153.59,6.5105]
[1723234041862,26.5093,153.63,153.55,15.4875]
[1723234042185,0.12549,153.62,153.57,19.56]
[1723234042987,20.0,153.63,153.58,19.56]
[1723234043284,20.0,153.64,153.59,19.56]
[1723234043683,20.0,153.64,153.6,6.5103]
[1723234044262,26.5088,153.64,153.6,6.5103]
[1723234044481,26.5088,153.64,153.59,6.5107]
[1723234044671,0.12549,153.63,153.58,6.5109]
[1723234044867,19.93647,153.63,153.53,6.3975]
[1723234045081,0.37647,153.63,153.58,26.0711]
[1723234045281,0.25098,153.63,153.58,26.0711]
[1723234045593,0.25098,153.63,153.6,6.5103]
[1723234045594,0.12549,153.63,153.6,6.5103]
[1723234045890,20.0,153.64,153.6,6.5103]
[1723234046276,26.5087,153.64,153.6,6.5103]
[1723234046668,26.5087,153.64,153.59,6.5107]
[1723234047463,6.5092,153.63,153.59,6.5107]
[1723234047686,20.0,153.62,153.59,6.5107]
[1723234048867,26.5095,153.62,153.58,6.5111]
[1723234050885,26.5095,153.62,153.58,6.0111]
[1723234051789,6.51,153.61,153.57,6.5115]
[1723234051987,7.64161756,153.61,153.55,19.56]
[1723234052173,7.64161756,153.61,153.56,6.5118]
[1723234052872,6.5106,153.6,153.56,6.5118]
[1723234053190,6.5106,153.6,153.55,19.56]
[1723234053392,7.64161756,153.61,153.56,6.5117]
[1723234053866,6.5104,153.6,153.56,6.5117]
[1723234054067,1.13161756,153.61,153.57,6.5113]
[1723234055594,1.13161756,153.61,153.59,19.56]
[1723234055766,1.13161756,153.61,153.59,26.0705]
[1723234055966,1.13161756,153.61,153.59,6.5105]
[1723234056264,1.13161756,153.61,153.59,26.0705]
[1723234056882,1.13161756,153.61,153.59,26.0707]
[1723234058970,1.13161756,153.61,153.59,19.56]
[1723234060499,1.13161756,153.61,153.53,6.3975]
[1723234060669,6.5106,153.6,153.56,19.56]
[1723234061195,6.5106,153.6,153.55,26.0724]
[1723234061778,6.5108,153.59,153.54,26.0728]
[1723234061992,20.69161756,153.61,153.49,13.0692]
[1723234061993,6.5132,153.54,153.49,13.0692]
[1723234062164,6.5132,153.54,153.49,19.56]
[1723234062369,19.56,153.56,153.47,16.3071]
[1723234062370,6.5126,153.55,153.5,26.0746]
[1723234062786,6.513,153.54,153.5,26.0746]
[1723234063004,6.5126,153.55,153.5,26.0746]
[1723234063306,6.5126,153.55,153.51,6.5141]
[1723234063676,6.5126,153.55,153.5,26.0746]
[1723234064082,6.88947,153.54,153.49,6.515]
[1723234064279,6.5126,153.55,153.5,19.56]
[1723234064587,15.7771,153.56,153.52,26.0734]
[1723234064893,6.5112,153.59,153.54,19.56]
[1723234065206,29.07169,153.6,153.55,26.0721]
[1723234065377,0.12549,153.59,153.55,6.5121]
[1723234066290,26.76188,153.59,153.55,6.5121]
[1723234066686,20.0,153.59,153.55,27.37449646]
[1723234066891,20.0,153.59,153.56,26.072]
[1723234067098,1.13161756,153.61,153.58,19.56]
[1723234067392,1.13161756,153.61,153.59,19.56]
[1723234067610,21.2904,153.64,153.59,19.56]
[1723234067775,22.42187781,153.64,153.59,19.56]
[1723234067976,6.5094,153.63,153.59,19.56]
[1723234068691,26.5095,153.62,153.59,19.56]
[1723234068898,26.5095,153.62,153.58,26.0708]
[1723234069492,20.0,153.62,153.59,1.30209152]
[1723234069688,20.0,153.62,153.59,19.56]
[1723234070098,20.0,153.62,153.58,26.0708]
[1723234070304,26.5096,153.62,153.58,19.56]
[1723234070505,26.5096,153.62,153.58,20.86204296]
[1723234072307,26.5096,153.62,153.59,19.56]
[1723234072789,20.0,153.62,153.59,19.56]
[1723234075136,26.5096,153.62,153.59,19.56]
[1723234075724,6.5101,153.61,153.58,19.56]
[1723234075902,26.5096,153.62,153.58,19.56]
[1723234077514,26.5096,153.62,153.59,19.56]
[1723234078004,6.51,153.61,153.57,19.56]
[1723234078701,6.51,153.61,153.57,26.0716]
[1723234078899,6.5104,153.6,153.55,19.56]
[1723234079103,6.5104,153.6,153.56,19.56]
[1723234079620,6.5104,153.6,153.56,26.072]
[1723234080299,20.0,153.62,153.57,26.0714]
[1723234080527,6.5096,153.62,153.57,26.0714]
[1723234080818,20.0,153.61,153.58,26.071]
[1723234081220,20.0,153.62,153.58,26.071]
[1723234081424,26.5097,153.62,153.58,26.071]
[1723234081801,20.0,153.62,153.58,26.071]
[1723234082327,26.5096,153.62,153.58,26.071]
[1723234082533,6.5103,153.61,153.57,19.56]
[1723234082713,6.5105,153.6,153.57,19.56]
[1723234082914,6.51,153.61,153.57,26.0716]
[1723234083537,26.5096,153.62,153.57,26.0716]
[1723234083917,6.5104,153.6,153.56,26.072]
[1723234084633,6.5104,153.6,153.57,19.56]
[1723234084930,19.68549,153.59,153.46,25.15444252]
[1723234085132,6.5129,153.54,153.51,19.56]
[1723234085731,6.5136,153.53,153.49,19.56]
[1723234085909,19.56,153.55,153.48,26.0754]
[1723234086109,6.5142,153.51,153.47,6.5158]
[1723234086307,6.5138,153.52,153.47,26.0758]
[1723234086807,6.5134,153.53,153.48,26.0754]
[1723234087238,19.56,153.5,153.4,10.20282013]
[1723234087411,0.12549,153.51,153.43,6.5172]
[1723234087412,6.5155,153.48,153.43,6.5172]
[1723234088114,1.1326104,153.48,153.44,6.5171]
[1723234088315,21.1326104,153.48,153.44,19.56]
[1723234088516,21.1326104,153.48,153.45,7.3403984]
[1723234089023,1.1326104,153.48,153.45,7.3403984]
[1723234089327,6.5163,153.46,153.45,0.8237984]
[1723234089533,6.89277,153.46,153.45,0.8237984]
[1723234089737,27.01826,153.46,153.45,0.8237984]
[1723234090511,72.01826,153.46,153.45,0.8237984]
[1723234090744,26.89277,153.46,153.45,0.8237984]
[1723234092241,6.5169,153.45,153.4,6.5188]
[1723234092411,20.0,153.44,153.4,6.5188]
[1723234093244,26.5172,153.44,153.39,6.5193]
[1723234093412,20.0,153.44,153.4,6.5187]
[1723234094317,6.5176,153.43,153.38,6.5193]
[1723234094528,6.64309,153.43,153.38,6.5193]
[1723234095317,0.12549,153.42,153.35,28.58]
[1723234095635,0.12549,153.42,153.37,28.58]
[1723234095826,6.76858,153.43,153.39,6.5192]
[1723234096009,20.0,153.44,153.4,6.5188]
[1723234096209,20.0,153.44,153.41,6.5183]
[1723234096426,6.77069362,153.47,153.39,28.58]
[1723234096427,26.517,153.45,153.4,6.5188]
[1723234097936,20.0,153.45,153.39,28.58]
[1723234098237,26.5165,153.46,153.39,28.58]
[1723234098538,26.5165,153.46,153.41,6.5183]
[1723234098735,6.5167,153.45,153.41,6.5183]
[1723234098918,20.0,153.44,153.41,6.5183]
[1723234099235,7.90229549,153.48,153.43,28.58]
[1723234099442,1.1326104,153.48,153.46,6.5163]
[1723234099613,1.1326104,153.48,153.45,6.5166]
[1723234100018,1.1326104,153.48,153.41,28.58]
[1723234100323,6.5169,153.45,153.39,45.2355]
[1723234100525,6.5169,153.45,153.41,6.5183]
[1723234100739,6.5164,153.46,153.41,6.5183]
[1723234101435,6.5168,153.45,153.4,6.5187]
[1723234102838,6.5168,153.45,153.41,6.5183]
[1723234104438,6.76688,153.47,153.39,45.2355]
[1723234104644,20.0,153.46,153.41,28.58]
[1723234104850,20.0,153.46,153.43,6.5176]
[1723234105744,20.0,153.46,153.42,6.5179]
[1723234106533,26.5167,153.46,153.41,6.5183]
[1723234107738,26.5167,153.46,153.39,45.2355]
[1723234107739,26.5167,153.46,153.42,6.5179]
[1723234108419,27.64938738,153.46,153.42,6.5179]
[1723234110550,21.13268738,153.46,153.45,6.5167]
[1723234110718,1.13268738,153.46,153.45,6.5167]
[1723234112434,6.5142,153.51,153.46,6.5161]
[1723234112642,7.64699675,153.5,153.46,6.5161]